bitfinex-derivatives/quotes_SOLF0:USTF0_20260218
["timestamp","ask_amount","ask_price","bid_price","bid_amount"]
[1771411192528,10.614,84.841,84.818,74.18]
[1771411192927,3.69962469,84.858,84.819,3.70145067]
[1771411193830,10.614,84.841,84.819,3.70145067]
[1771411194630,10.614,84.841,84.82,2.00096845]
[1771411194929,10.614,84.841,84.821,0.66696451]
[1771411195132,10.614,84.841,84.821,74.84696451]
[1771411198534,10.614,84.841,84.822,74.2]
[1771411200030,3.93717655,84.85,84.822,55.9894]
[1771411200224,10.6146,84.836,84.823,55.244]
[1771411200428,3.93717655,84.869,84.831,0.72017273]
[1771411200736,3.93717655,84.869,84.832,74.2]
[1771411201230,10.6125,84.852,84.833,55.8167]
[1771411203226,3.93717655,84.858,84.833,55.8167]
[1771411204734,14.54897655,84.858,84.833,55.8167]
[1771411204937,3.93717655,84.857,84.811,0.73432425]
[1771411205132,3.93717655,84.857,84.812,74.2]
[1771411205331,3.93717655,84.857,84.813,0.73397657]
[1771411206236,3.93717655,84.853,84.813,0.73397657]
[1771411208342,14.54977655,84.852,84.813,0.73397657]
[1771411208648,14.54977655,84.852,84.815,0.9266572]
[1771411209242,3.93717655,84.848,84.814,74.2]
[1771411210736,3.93717655,84.845,84.814,74.2]
[1771411212840,3.93717655,84.845,84.821,0.0742709]
[1771411216441,3.98617178,84.852,84.821,0.0742709]
[1771411220058,3.98617178,84.852,84.821,0.81433551]
[1771411223457,3.98617178,84.862,84.821,0.81433551]
[1771411223662,3.98617178,84.862,84.823,0.71669659]
[1771411224863,3.98617178,84.862,84.825,0.71640203]
[1771411225563,3.98617178,84.885,84.85,2.70859409]
[1771411225865,3.98617178,84.885,84.851,0.70762564]
[1771411226754,3.98617178,84.885,84.86,2.00096845]
[1771411226954,3.98617178,84.896,84.86,2.00096845]
[1771411228066,3.98617178,84.896,84.855,10.612]
[1771411229666,3.98617178,84.896,84.856,0.72523282]
[1771411229969,3.98617178,84.896,84.861,0.72497533]
[1771411234469,3.98617178,84.896,84.837,0.66898037]
[1771411234769,3.98617178,84.873,84.838,74.2]
[1771411234975,3.98617178,84.873,84.84,2.00096845]
[1771411235271,3.98617178,84.888,84.86,2.00096845]
[1771411235460,10.8943994,84.937,84.86,2.00096845]
[1771411235461,3.98617178,84.898,84.861,0.66872215]
[1771411241775,3.98617178,84.909,84.871,0.95370834]
[1771411247787,1.99855616,84.92,84.881,10.6088]
[1771411248077,3.98221872,84.921,84.882,0.8772156]
[1771411248279,3.98221872,84.921,84.882,75.0772156]
[1771411248479,3.98221872,84.921,84.883,0.87700897]
[1771411248875,3.98221872,84.921,84.884,0.87699063]
[1771411250578,3.98221872,84.921,84.89,1.99855616]
[1771411250976,3.98221872,84.921,84.891,0.8564188]
[1771411251183,3.98221872,84.921,84.85,21.2253]
[1771411251184,3.98221872,84.921,84.881,0.8562192]
[1771411251386,3.98221872,84.909,84.861,0.8562192]
[1771411251582,3.98221872,84.909,84.873,74.2]
[1771411251787,3.98221872,84.909,84.868,74.2]
[1771411252383,3.98221872,84.906,84.868,74.2]
[1771411252993,3.98221872,84.906,84.87,10.6101]
[1771411253491,3.98221872,84.906,84.871,0.85100526]
[1771411254786,3.98221872,84.906,84.872,0.92552022]
[1771411256688,3.98221872,84.906,84.875,11.52734556]
[1771411256891,3.98221872,84.906,84.876,0.91774556]
[1771411260591,3.98221872,84.906,84.879,10.6091]
[1771411267494,3.98221872,84.906,84.885,10.6083]
[1771411268499,3.63165903,84.916,84.885,10.6083]
[1771411276703,3.63165903,84.916,84.885,11.53679137]
[1771411277408,3.63165903,84.916,84.885,0.92849137]
[1771411294533,3.63165903,84.916,84.88,1.99855616]
[1771411295930,3.63165903,84.916,84.883,0.76874705]
[1771411296733,3.63165903,84.916,84.884,10.6085]
[1771411297330,3.63165903,84.916,84.885,0.76850753]
[1771411299734,3.63591021,84.926,84.885,0.76850753]
[1771411300332,10.6041,84.92,84.885,0.76850753]
[1771411300536,14.24001021,84.92,84.885,0.76850753]
[1771411301030,10.6041,84.92,84.885,0.76850753]
[1771411301235,3.63591021,84.919,84.885,0.76850753]
[1771411304948,3.62166066,84.929,84.891,0.8250504]
[1771411305441,3.62166066,84.929,84.882,0.8249471]
[1771411305833,3.62166066,84.929,84.886,10.6082]
[1771411306648,3.62166066,84.929,84.893,10.6073]
[1771411306838,3.62166066,84.929,84.894,0.8299841]
[1771411313549,12.59902179,84.94,84.9,1.99742179]
[1771411313756,3.62166066,84.939,84.901,0.9439794]
[1771411314256,3.62166066,84.937,84.901,0.9439794]
[1771411314454,3.62166066,84.937,84.9,1.99742179]
[1771411314755,3.62166066,84.937,84.893,11.48535085]
[1771411315348,3.62166066,84.937,84.894,0.87795882]
[1771411317655,3.83960751,84.934,84.894,0.87795882]
[1771411319562,3.83960751,84.934,84.896,10.6069]
[1771411334567,3.83960751,84.934,84.896,11.43125864]
[1771411334767,3.83960751,84.934,84.897,0.82347636]
[1771411337170,3.73561779,84.924,84.885,0.82538601]
[1771411337372,3.73561779,84.919,84.875,75.00538601]
[1771411338672,3.73561779,84.919,84.881,10.6088]
[1771411340883,3.73561779,84.915,84.871,10.6101]
[1771411341070,3.73561779,84.909,84.871,10.6101]
[1771411342581,3.73561779,84.909,84.871,11.50785985]
[1771411342882,3.73561779,84.909,84.874,10.6097]
[1771411343278,3.73561779,84.909,84.874,11.50739478]
[1771411349882,3.73561779,84.909,84.876,11.40431134]
[1771411351188,3.73561779,84.909,84.876,0.79491134]
[1771411353495,3.73561779,84.909,84.87,1.99742179]
[1771411353797,3.73561779,84.899,84.86,10.6115]
[1771411357994,3.73561779,84.895,84.856,0.79469921]
[1771411358488,3.73561779,84.889,84.845,0.72694868]
[1771411358701,3.73561779,84.879,84.845,0.72694868]
[1771411361686,3.73561779,84.879,84.83,1.99742179]
[1771411361999,3.73561779,84.879,84.831,0.68450511]
[1771411363197,3.73561779,84.879,84.841,0.68439772]
[1771411363398,3.73561779,84.877,84.841,0.68439772]
[1771411365300,14.25130359,84.876,84.841,0.68439772]
[1771411365800,3.67177737,84.875,84.841,0.68439772]
[1771411367194,3.67177894,84.873,84.841,0.68439772]
[1771411368899,3.67177894,84.873,84.831,0.67008688]
[1771411369095,3.67173081,84.869,84.831,0.67008688]
[1771411369399,3.67173081,84.869,84.824,74.2]
[1771411370002,3.67173081,84.869,84.821,0.67003918]
[1771411370205,3.67173081,84.869,84.822,10.6162]
[1771411370604,3.67173081,84.869,84.822,11.28546344]
[1771411373410,3.67173081,84.869,84.828,10.6155]
[1771411377710,3.67173081,84.869,84.828,11.24798632]
[1771411379912,1.99977709,84.86,84.828,0.63248632]
[1771411380111,3.90345593,84.859,84.828,0.63248632]
[1771411380813,3.90345593,84.856,84.814,0.62447855]
[1771411381012,3.90345593,84.849,84.805,74.82443755]
[1771411381204,3.90345593,84.849,84.805,0.62443755]
[1771411381405,1.99977709,84.85,84.766,35.08584324]
[1771411381406,1.99977709,84.83,84.795,0.62443755]
[1771411381605,3.90345593,84.829,84.781,0.62443755]
[1771411382117,5.90323302,84.84,84.796,0.62496279]
[1771411382317,3.90345593,84.839,84.796,0.62496279]
[1771411383813,3.90345593,84.839,84.799,0.57904433]
[1771411384010,21.2179,84.881,84.751,2.05172348]
[1771411384011,3.90345593,84.859,84.811,0.57900473]
[1771411385418,14.51515593,84.858,84.811,0.57900473]
[1771411385816,3.90345593,84.858,84.821,0.48167526]
[1771411387217,3.90345593,84.868,84.823,0.48159671]
[1771411387416,3.90345593,84.868,84.831,0.48159671]
[1771411387714,3.90345593,84.868,84.805,0.47097635]
[1771411387915,21.2121,84.904,84.815,0.47097635]
[1771411387916,3.90345593,84.859,84.815,0.47097635]
[1771411388617,3.90345593,84.859,84.818,0.47093702]
[1771411389520,3.90345593,84.859,84.82,0.47089965]
[1771411391217,3.90345593,84.859,84.77,35.39]
[1771411391218,6.00077129,84.83,84.77,35.39]
[1771411391517,4.0009942,84.819,84.78,1.99977709]
[1771411391916,4.0009942,84.819,84.78,10.6214]
[1771411393032,4.0009942,84.819,84.771,10.6226]
[1771411393614,4.0009942,84.819,84.772,0.33150095]
[1771411394325,4.0009942,84.819,84.775,0.33146567]
[1771411394823,3.88506018,84.829,84.781,0.33366262]
[1771411395523,3.88506018,84.809,84.761,0.33362813]
[1771411398526,3.88506018,84.809,84.76,12.62367709]
[1771411401123,3.88506018,84.799,84.76,10.6239]
[1771411401830,3.88506018,84.799,84.76,12.62367709]
[1771411402225,3.88506018,84.789,84.751,10.6251]
[1771411403634,3.88506018,84.789,84.741,10.6263]
[1771411403835,3.88506018,84.769,84.721,0.65604086]
[1771411404433,3.88506018,84.759,84.721,0.65604086]
[1771411405231,3.88506018,84.759,84.708,0.65597527]
[1771411405433,3.88506018,84.759,84.71,1.99977709]
[1771411406241,3.88506018,84.759,84.71,2.59348264]
[1771411407241,3.88506018,84.759,84.71,1.99977709]
[1771411407542,3.88506018,84.719,84.688,17.53520813]
[1771411407750,3.88506018,84.719,84.589,165.5956]
[1771411407751,1.99977709,84.7,84.642,5.0781436]
[1771411408039,35.39,84.748,84.642,5.0781436]
[1771411408237,35.39,84.748,84.564,165.6459]
[1771411408238,1.99977709,84.66,84.601,2.05509788]
[1771411408437,1.99977709,84.63,84.57,1.99977709]
[1771411408640,2.92621412,84.641,84.58,1.99977709]
[1771411408641,1.99977709,84.64,84.58,1.99977709]
[1771411408956,2.92621763,84.639,84.58,1.99977709]
[1771411409250,2.92621763,84.639,84.542,2.05674974]
[1771411409437,2.92621763,84.639,84.59,1.99977709]
[1771411409637,165.37,84.706,84.542,2.05674974]
[1771411409638,2.92618829,84.669,84.62,1.99977709]
[1771411410034,4.79536692,84.66,84.585,10.6459]
[1771411410241,4.79536692,84.66,84.611,3.85477079]
[1771411411244,2.79558983,84.66,84.62,1.99977709]
[1771411411852,4.79536692,84.66,84.611,3.85477079]
[1771411412048,2.79558983,84.66,84.611,3.85477079]
[1771411412249,2.79558983,84.66,84.62,1.99977709]
[1771411412954,4.79536692,84.66,84.611,3.85477079]
[1771411413247,2.79519622,84.659,84.611,3.85477079]
[1771411413437,2.79519622,84.649,84.601,3.85477079]
[1771411413643,2.79519622,84.649,84.61,1.99977709]
[1771411413845,1.99977709,84.66,84.611,3.85477079]
[1771411414038,1.99977709,84.69,84.641,3.85477079]
[1771411414451,2.96058441,84.689,84.641,3.85477079]
[1771411415250,1.99977709,84.7,84.651,3.85477079]
[1771411417139,2.96056018,84.702,84.661,3.85477079]
[1771411417343,2.96056018,84.702,84.667,0.07451051]
[1771411419947,1.99977709,84.7,84.667,0.07451051]
[1771411420151,4.66343249,84.7,84.667,0.07451051]
[1771411421951,4.67192959,84.7,84.667,0.07451051]
[1771411422349,2.00827419,84.68,84.641,10.6389]
[1771411422747,2.00827419,84.68,84.634,3.85477079]
[1771411423253,2.52614511,84.679,84.64,5.86304498]
[1771411424057,0.07605036,84.668,84.64,5.86304498]
[1771411425547,2.00827419,84.69,84.643,3.96504746]
[1771411425849,2.51300012,84.693,84.65,2.00827419]
[1771411426847,2.00827419,84.69,84.645,3.96504746]
[1771411427444,2.00827419,84.69,84.659,0.07465505]
[1771411427948,4.48901118,84.69,84.659,0.07465505]
[1771411428348,2.48073699,84.69,84.659,0.07465505]
[1771411428551,4.48901118,84.69,84.659,0.07465505]
[1771411429057,2.48073699,84.69,84.659,0.07465505]
[1771411429252,4.48901118,84.69,84.659,0.07465505]
[1771411429450,2.40603966,84.679,84.638,10.6393]
[1771411430356,2.43012544,84.659,84.612,3.96504746]
[1771411430856,0.07844266,84.644,84.613,10.6424]
[1771411431256,0.07844266,84.644,84.612,3.96504746]
[1771411432155,0.07844266,84.644,84.604,10.6435]
[1771411432858,2.33467523,84.647,84.596,10.6446]
[1771411433857,2.30375985,84.646,84.596,10.6446]
[1771411434960,0.0777876,84.629,84.596,10.6446]
[1771411435355,0.0777876,84.629,84.588,3.96504746]
[1771411435861,2.30372069,84.633,84.588,3.96504746]
[1771411436459,2.40466551,84.655,84.6,3.72029894]
[1771411437654,10.6378,84.651,84.619,0.07731317]
[1771411437965,2.40466551,84.655,84.619,0.07731317]
[1771411439161,5.9841985,84.66,84.619,3.79761211]
[1771411439366,8.42151647,84.66,84.619,3.79761211]
[1771411440156,5.9841985,84.66,84.627,10.6406]
[1771411440358,2.45482659,84.672,84.627,3.72029894]
[1771411440762,9.24373054,84.74,84.619,0.07731317]
[1771411440763,2.45483016,84.661,84.619,0.07731317]
[1771411440964,2.45483016,84.649,84.593,3.72029894]
[1771411442562,5.9841985,84.65,84.593,3.72029894]
[1771411442563,2.41412611,84.64,84.593,3.72029894]
[1771411442767,0.07850061,84.629,84.593,3.72029894]
[1771411444669,2.42053383,84.627,84.579,10.6467]
[1771411444869,0.07850061,84.629,84.58,3.72029894]
[1771411445067,2.42053714,84.628,84.58,3.72029894]
[1771411445271,2.4205182,84.626,84.582,10.6463]
[1771411445472,2.4205182,84.626,84.583,3.72029894]
[1771411445971,2.42883022,84.639,84.585,3.72029894]
[1771411446469,2.42883022,84.639,84.592,3.72029894]
[1771411446663,2.4288115,84.639,84.552,3.72029894]
[1771411446868,2.42881472,84.619,84.562,3.72029894]
[1771411447764,10.6423,84.615,84.564,3.72029894]
[1771411447970,13.25567335,84.615,84.582,0.07565938]
[1771411448265,2.61335506,84.614,84.582,0.07565938]
[1771411449071,2.6133397,84.612,84.582,0.07565938]
[1771411449274,2.6133397,84.612,84.551,3.72029894]
[1771411449868,2.47268097,84.607,84.551,3.72029894]
[1771411451071,0.07454441,84.587,84.551,3.72029894]
[1771411451267,8.45684691,84.62,84.57,3.72029894]
[1771411451474,2.54719282,84.619,84.57,3.72029894]
[1771411453177,10.6418,84.618,84.57,3.72029894]
[1771411453679,13.146705,84.616,84.57,3.72029894]
[1771411454082,2.50458793,84.629,84.577,3.72029894]
[1771411454381,2.50458793,84.642,84.577,3.72029894]
[1771411455074,2.50458793,84.642,84.596,3.6800777]
[1771411455774,2.50458793,84.642,84.601,10.6439]
[1771411456285,2.50458793,84.642,84.611,0.07693906]
[1771411456779,2.49462261,84.637,84.611,0.07693906]
[1771411460384,2.49462261,84.637,84.57,5.9841985]
[1771411460385,2.52293757,84.619,84.57,3.6800777]
[1771411460682,2.52293757,84.619,84.539,3.6800777]
[1771411461584,80.2241985,84.62,84.539,3.6800777]
[1771411461585,2.52292468,84.609,84.555,10.6498]
[1771411462487,0.07820119,84.59,84.555,10.6498]
[1771411462783,0.07820119,84.59,84.555,14.3298777]
[1771411462983,2.49816187,84.639,84.558,3.6800777]
[1771411463383,2.49816187,84.619,84.558,3.6800777]
[1771411463686,2.47396045,84.617,84.561,10.6489]
[1771411464686,2.47394821,84.613,84.561,10.6489]
[1771411464885,2.47394821,84.613,84.581,0.07767082]
[1771411466382,10.6437,84.604,84.551,10.6502]
[1771411466584,2.75703818,84.599,84.544,3.6800777]
[1771411467993,2.75703818,84.599,84.549,3.6800777]
[1771411469797,0.07730118,84.582,84.551,3.6800777]
[1771411470596,0.07730118,84.582,84.556,3.6800777]
[1771411470788,2.83886758,84.612,84.558,0.07451343]
[1771411470997,2.83886758,84.612,84.559,3.6800777]
[1771411471998,2.01313927,84.6,84.559,3.6800777]
[1771411472495,2.83886758,84.612,84.567,3.6800777]
[1771411472701,2.01313927,84.61,84.567,3.6800777]
[1771411472892,2.01313927,84.6,84.567,3.6800777]
[1771411475696,2.9877801,84.619,84.577,3.6800777]
[1771411475897,2.01313927,84.61,84.577,3.6800777]
[1771411477806,2.01313927,84.61,84.582,10.6464]
[1771411480803,2.01313927,84.61,84.577,3.6800777]
[1771411482804,2.01313927,84.6,84.575,0.07537188]
[1771411483005,2.01313927,84.59,84.575,0.07537188]
[1771411483498,5.0578937,84.6,84.565,10.6485]
[1771411483705,2.01313927,84.6,84.565,3.6800777]
[1771411483898,2.01294688,84.6,84.565,3.6800777]
[1771411484804,2.01294688,84.6,84.574,0.07872909]
[1771411488107,2.01294688,84.61,84.574,0.07872909]
[1771411489110,2.01294688,84.61,84.575,3.97707407]
[1771411489807,2.01294688,84.61,84.576,10.6471]
[1771411491112,2.01294688,84.62,84.58,3.97707407]
[1771411492014,2.01294688,84.62,84.592,0.07855977]
[1771411497019,3.1322433,84.629,84.592,0.07855977]
[1771411497721,2.01294688,84.62,84.592,0.07855977]
[1771411498917,10.6393,84.639,84.593,3.72895573]
[1771411499113,2.01294688,84.64,84.593,3.72895573]
[1771411500119,5.18547801,84.64,84.593,3.72895573]
[1771411500525,3.17253113,84.64,84.601,3.72895573]
[1771411500727,2.01294688,84.63,84.601,3.72895573]
[1771411501021,10.91050583,84.684,84.483,62.62797351]
[1771411501022,3.1725225,84.619,84.571,3.72895573]
[1771411501618,3.1725225,84.619,84.578,10.6468]
[1771411502629,0.07448755,84.607,84.578,10.6468]
[1771411503231,0.07448755,84.607,84.571,3.72895573]
[1771411503429,2.01294688,84.6,84.567,10.6482]
[1771411504919,0.07448755,84.607,84.573,3.72895573]
[1771411505525,2.01294688,84.62,84.573,3.72895573]
[1771411505825,2.01294688,84.62,84.57,2.01294688]
[1771411505826,2.01294688,84.62,84.575,3.72895573]
[1771411506726,2.01294688,84.62,84.579,10.6466]
[1771411506932,4.94669994,84.62,84.579,10.6466]
[1771411507335,2.01294688,84.62,84.582,3.72895573]
[1771411508231,2.01294688,84.64,84.592,3.72895573]
[1771411508621,4.99210872,84.64,84.592,3.72895573]
[1771411509024,2.97915411,84.639,84.592,3.72895573]
[1771411509827,2.97915411,84.639,84.595,10.6446]
[1771411510331,0.0781226,84.624,84.595,10.6446]
[1771411510730,0.0781226,84.624,84.595,14.37355573]
[1771411511937,2.01294688,84.61,84.568,3.72895573]
[1771411512332,2.01294688,84.61,84.577,10.6469]
[1771411512636,2.01294688,84.61,84.577,10.20043332]
[1771411515037,0.07467003,84.602,84.577,10.20043332]
[1771411516837,3.00400177,84.619,84.58,10.6465]
[1771411517033,2.93741342,84.609,84.58,10.6465]
[1771411517241,2.93741342,84.609,84.581,0.0775257]
[1771411519138,2.93741342,84.609,84.582,10.6463]
[1771411520434,2.01294688,84.6,84.581,0.0775257]
[1771411520950,2.01294688,84.6,84.581,0.00136564]
[1771411521344,0.07941977,84.599,84.581,0.00136564]
[1771411521638,0.07941977,84.599,84.54,74.28]
[1771411521639,2.85509675,84.589,84.541,3.63826681]
[1771411521843,2.01294688,84.59,84.541,3.63826681]
[1771411522531,2.82091402,84.589,84.541,3.63826681]
[1771411523143,0.07979927,84.574,84.541,3.63826681]
[1771411524641,2.01294688,84.57,84.541,3.63826681]
[1771411524934,0.07979927,84.574,84.541,3.63826681]
[1771411525135,2.01294688,84.57,84.541,3.63826681]
[1771411525337,2.01294688,84.57,84.531,3.63826681]
[1771411526043,0.07979927,84.574,84.533,3.63826681]
[1771411526337,0.07979927,84.574,84.541,3.63826681]
[1771411526531,2.01294688,84.58,84.541,3.63826681]
[1771411526936,0.07545586,84.566,84.541,3.63826681]
[1771411528642,10.6455,84.589,84.543,3.63826681]
[1771411529744,10.6455,84.589,84.548,3.63826681]
[1771411530634,2.01294688,84.59,84.551,3.63826681]
[1771411531735,2.01294688,84.59,84.553,10.6499]
[1771411532845,5.07616979,84.59,84.551,3.63826681]
[1771411533645,3.06321637,84.589,84.551,3.63826681]
[1771411535237,3.06321637,84.589,84.553,3.63826681]
[1771411536338,3.06321637,84.589,84.554,14.28816681]
[1771411536543,2.01294688,84.6,84.555,3.63826681]
[1771411537443,2.01294688,84.61,84.565,3.63826681]
[1771411538445,2.01294688,84.62,84.571,3.63826681]
[1771411538647,3.0736549,84.626,84.581,3.63826681]
[1771411539047,3.0736549,84.626,84.584,3.63826681]
[1771411539547,2.01294688,84.63,84.584,3.63826681]
[1771411539942,3.07364948,84.639,84.591,3.63826681]
[1771411540640,3.07364948,84.639,84.592,3.63826681]
[1771411540841,3.07364948,84.639,84.607,0.07575253]
[1771411545750,12.65074688,84.65,84.607,3.87567502]
[1771411546050,12.6484407,84.65,84.607,3.87567502]
[1771411546651,15.57982488,84.65,84.607,3.87567502]
[1771411547148,2.9313794,84.649,84.607,3.87567502]
[1771411549048,4.86122499,84.64,84.607,0.07575253]
[1771411549352,2.85058429,84.639,84.607,0.07575253]
[1771411549556,2.0106407,84.63,84.584,3.79992249]
[1771411549746,2.85058429,84.639,84.584,3.79992249]
[1771411549946,2.85058429,84.639,84.59,2.0106407]
[1771411550145,2.89428098,84.638,84.592,14.44502249]
[1771411550352,2.89428098,84.638,84.593,3.79992249]
[1771411550943,2.89428098,84.638,84.595,10.6447]
[1771411551550,2.89427643,84.636,84.593,3.79992249]
[1771411551950,2.8869307,84.629,84.588,3.79992249]
[1771411552445,2.8869307,84.629,84.589,10.6454]
[1771411553258,2.8869307,84.629,84.592,10.6451]
[1771411554145,2.8869307,84.629,84.598,10.6443]
[1771411554853,2.8869307,84.629,84.591,3.79992249]
[1771411555049,2.8869307,84.629,84.605,0.07511851]
[1771411558457,13.5275307,84.629,84.605,0.07511851]
[1771411558661,2.97031879,84.619,84.582,10.6464]
[1771411559162,2.97031879,84.619,84.586,3.84989283]
[1771411559962,2.0106407,84.63,84.586,3.84989283]
[1771411560258,0.07593617,84.611,84.586,3.84989283]
[1771411560657,2.0106407,84.63,84.592,3.84989283]
[1771411561661,2.0106407,84.63,84.594,10.6449]
[1771411561961,2.96023294,84.632,84.592,3.84989283]
[1771411562159,2.0106407,84.63,84.592,3.84989283]
[1771411562363,2.0106407,84.63,84.592,14.49489283]
[1771411562564,2.0106407,84.63,84.604,0.07614701]
[1771411564460,2.96023294,84.632,84.604,0.07614701]
[1771411566767,2.0106407,84.64,84.604,0.07614701]
[1771411567367,3.00149832,84.639,84.604,0.07614701]
[1771411568274,2.0106407,84.63,84.604,0.07614701]
[1771411569476,3.00149832,84.639,84.604,0.07614701]
[1771411570275,2.0106407,84.62,84.576,3.84989283]
[1771411570874,2.0106407,84.62,84.585,10.646]
[1771411571074,2.0106407,84.62,84.585,14.49589283]
[1771411571280,2.0106407,84.62,84.586,3.84989283]
[1771411573176,0.07738143,84.611,84.586,3.84989283]
[1771411574784,0.07738143,84.611,84.593,10.6449]
[1771411576383,0.07738143,84.611,84.586,3.84989283]
[1771411577985,0.07738143,84.611,84.587,10.6457]
[1771411578385,2.76907267,84.599,84.55,2.0106407]
[1771411578582,2.76907267,84.599,84.551,3.81902382]
[1771411578782,2.0106407,84.59,84.551,3.81902382]
[1771411579184,2.76907267,84.599,84.551,3.81902382]
[1771411580588,0.07984191,84.583,84.551,3.81902382]
[1771411580784,0.07984191,84.583,84.563,10.6487]
[1771411586887,0.07984191,84.583,84.567,10.6482]
[1771411587089,2.76907267,84.599,84.567,14.46722382]
[1771411587488,2.76907267,84.599,84.567,3.81902382]
[1771411588589,2.76907267,84.599,84.575,0.07855621]
[1771411589587,2.76907267,84.599,84.556,3.81902382]
[1771411589787,0.07832952,84.595,84.556,3.81902382]
[1771411590084,0.07832952,84.595,84.569,3.81902382]
[1771411590691,2.0106407,84.6,84.569,3.81902382]
[1771411590884,2.85159793,84.609,84.561,3.81902382]
[1771411591093,0.07679004,84.59,84.561,3.81902382]
[1771411592686,2.0106407,84.61,84.58,3.81902382]
[1771411593094,4.9495443,84.62,84.58,3.81902382]
[1771411593494,2.0106407,84.62,84.58,3.81902382]
[1771411594293,2.0106407,84.62,84.585,3.81902382]
[1771411594999,2.0106407,84.63,84.593,10.6449]
[1771411595998,2.0106407,84.63,84.593,14.46392382]
[1771411596201,2.0106407,84.63,84.596,3.81902382]
[1771411596594,2.93890081,84.632,84.596,3.81902382]
[1771411596993,2.93890081,84.632,84.605,0.07759078]
[1771411597300,2.97712658,84.638,84.605,0.07759078]
[1771411597994,2.97712658,84.638,84.556,21.2993]
[1771411597995,2.91706918,84.619,84.567,3.81902382]
[1771411598197,2.91706918,84.609,84.567,3.81902382]
[1771411598498,2.0106407,84.6,84.567,3.81902382]
[1771411599302,2.0106407,84.6,84.568,10.6481]
[1771411599600,2.91706918,84.609,84.568,14.46712382]
[1771411599906,2.68242386,84.619,84.571,3.81902382]
[1771411600197,2.0106407,84.59,84.551,3.81902382]
[1771411600902,2.68242094,84.599,84.551,3.81902382]
[1771411601806,2.73383239,84.583,84.535,74.32]
[1771411601997,2.0106407,84.57,84.535,3.81902382]
[1771411602199,4.66841804,84.57,84.535,3.81902382]
[1771411603402,2.65777494,84.585,84.535,3.81902382]
[1771411603598,2.0106407,84.58,84.535,3.81902382]
[1771411604803,2.0106407,84.58,84.537,3.93428789]
[1771411605903,2.01409471,84.58,84.537,3.93428789]
[1771411608809,2.01409471,84.58,84.538,10.6518]
[1771411609109,2.01409471,84.58,84.539,3.93428789]
[1771411610605,2.76620681,84.579,84.541,10.6515]
[1771411610805,2.76620716,84.549,84.499,3.93428789]
[1771411611004,2.01409471,84.54,84.504,10.6562]
[1771411611212,2.01409471,84.54,84.504,14.59048789]
[1771411611405,4.78029934,84.54,84.504,14.59048789]
[1771411611602,4.78029934,84.54,84.49,2.01409471]
[1771411611603,2.76620463,84.539,84.495,10.6572]
[1771411611798,2.01409471,84.52,84.496,3.93428789]
[1771411612010,2.01409471,84.52,84.496,3.85706602]
[1771411612204,2.79739403,84.537,84.496,3.85706602]
[1771411612205,2.01409471,84.53,84.496,3.85706602]
[1771411612905,2.01409471,84.52,84.496,3.85706602]
[1771411613402,2.95636887,84.589,84.445,2.05914723]
[1771411613403,2.95636887,84.588,84.478,165.8145]
[1771411613603,2.01409471,84.58,84.478,35.49]
[1771411613797,2.01409471,84.55,84.5,2.01409471]
[1771411613997,2.01409471,84.56,84.502,3.93428789]
[1771411614206,2.01409471,84.56,84.515,3.93428789]
[1771411615406,9.471e-05,84.57,84.527,3.93428789]
[1771411615908,2.01409471,84.59,84.55,5.80128262]
[1771411616106,2.01409471,84.59,84.55,3.78718791]
[1771411616810,2.01409471,84.59,84.551,10.6502]
[1771411617905,2.01409471,84.59,84.551,3.78718791]
[1771411618108,2.01409471,84.58,84.551,3.78718791]
[1771411618808,2.01409471,84.6,84.553,3.78718791]
[1771411619913,2.01409471,84.6,84.562,3.78718791]
[1771411620512,1.14188707,84.602,84.562,3.78718791]
[1771411620702,2.01409471,84.61,84.562,3.78718791]
[1771411621506,2.01409471,84.61,84.574,10.6473]
[1771411626016,2.01409471,84.61,84.584,0.07529752]
[1771411630817,1.13785148,84.589,84.54,2.01409471]
[1771411631019,2.01409471,84.57,84.537,3.78718791]
[1771411631220,2.01409471,84.58,84.537,3.78718791]
[1771411631715,2.01409471,84.58,84.538,10.6519]
[1771411631921,2.01409471,84.58,84.539,3.78718791]
[1771411632819,0.08023869,84.568,84.539,3.78718791]
[1771411633214,2.01409471,84.56,84.526,3.78718791]
[1771411634224,0.07670667,84.551,84.526,3.78718791]
[1771411634724,0.07670667,84.551,84.527,10.6532]
[1771411637720,0.07670667,84.551,84.519,10.6543]
[1771411637926,2.01409471,84.54,84.5,3.78592153]
[1771411638829,0.07741346,84.528,84.5,3.78592153]
[1771411640330,0.07741346,84.528,84.501,14.44252153]
[1771411640627,0.07741346,84.528,84.501,3.78592153]
[1771411642716,0.07741346,84.528,84.502,10.6563]
[1771411642928,1.39041207,84.516,84.478,3.78592153]
[1771411643129,2.01409471,84.51,84.478,3.78592153]
[1771411643434,2.01409471,84.52,84.478,3.78592153]
[1771411643824,0.07716734,84.502,84.478,3.78592153]
[1771411644328,2.01409471,84.52,84.478,3.78592153]
[1771411644725,2.01409471,84.51,84.478,3.78592153]
[1771411645229,2.01409471,84.52,84.478,3.78592153]